{"text_format":"1","workbook":"xlsx","n_sheets":3,"sheets":["Names","Lists","ورقة1"],"not_rendered":{"charts":0,"images":0,"macros":1,"external_links":0,"defined_names":2,"comments":0,"pivot_tables":0},"unopened":[],"bounds":{"document_bytes":16777216,"sheet_cells":100000,"rows_first":2000,"rows_last":500,"rows_between":2000,"halvings":0,"cell_chars":16384,"cell_head_chars":4096},"cells_cut":0,"cells_raw":0,"read":"whole","date_system":"1900"}

{"sheet":"Names","index":0,"n_rows":88,"n_cols":49,"rows_kept":88,"cut":false,"hidden":false,"merged":[[0,46,2,46],[0,24,2,24],[0,26,2,26],[0,28,2,28],[0,30,2,30],[0,32,2,32],[0,34,2,34],[0,36,2,36],[0,38,2,38],[0,40,2,40],[0,42,2,42],[0,44,2,44],[0,22,2,22],[0,0,2,0],[0,2,2,2],[0,4,2,4],[0,6,2,6],[0,8,2,8],[0,10,2,10],[0,12,2,12],[0,14,2,14],[0,16,2,16],[0,18,2,18],[0,20,2,20]]}
["الرقم","العاشر أ","الرقم","العاشر ب","الرقم","العاشر ج","الرقم","العاشر د","الرقم","الحادي عشر العلمي أ","الرقم","الحادي عشر العلمي ب","الرقم","الحادي عشر العلمي ج","الرقم","الحادي عشر العلمي د","الرقم","الحادي عشر الادبي أ","الرقم","الحادي عشر الادبي ب","الرقم","الحادي عشر الادبي ج","الرقم","الحادي عشر الادبي د","الرقم","الحادي عشر الادبي هـ","الرقم","الحادي عشر الادبي و","الرقم","الثاني عشر العلمي ا","الرقم","الثاني عشر العلمي ب","الرقم","الثاني عشر العلمي ج","الرقم","الثاني عشر الادبي أ","الرقم","الثاني عشر الادبي ب","الرقم","الثاني عشر الادبي ج","الرقم","الثاني عشر الادبي د ","الرقم","الثاني عشر الادبي هـ","الرقم","الثاني عشر الادبي و","الرقم","الثاني عشر الادبي ز"]
[null,"عدد طلاب الشعبة ",null,"عدد طلاب الشعبة ",null,"عدد طلاب الشعبة ",null,"عدد طلاب الشعبة ",null,"عدد طلاب الشعبة ",null,"عدد طلاب الشعبة ",null,"عدد طلاب الشعبة ",null,"عدد طلاب الشعبة ",null,"عدد طلاب الشعبة ",null,"عدد طلاب الشعبة ",null,"عدد طلاب الشعبة ",null,"عدد طلاب الشعبة ",null,"عدد طلاب الشعبة ",null,"عدد طلاب الشعبة ",null,"عدد طلاب الشعبة ",null,"عدد طلاب الشعبة ",null,"عدد طلاب الشعبة ",null,"عدد طلاب الشعبة ",null,"عدد طلاب الشعبة ",null,"عدد طلاب الشعبة ",null,"عدد طلاب الشعبة ",null,"عدد طلاب الشعبة ",null,"عدد طلاب الشعبة ",null,"عدد طلاب الشعبة "]
[null,{"$f":"COUNTA(B4:B68)","v":23},null,{"$f":"COUNTA(D4:D68)","v":23},null,65,null,1,null,{"$f":"COUNTA(J4:J218)","v":1},null,{"$f":"COUNTA(L4:L68)","v":1},null,{"$f":"COUNTA(N4:N68)","v":1},null,{"$f":"COUNTA(P4:P218)","v":0},null,{"$f":"COUNTA(R4:R218)","v":0},null,{"$f":"COUNTA(T4:T68)","v":0},null,{"$f":"COUNTA(V4:V99)","v":0},null,{"$f":"COUNTA(X4:X68)","v":0},null,{"$f":"COUNTA(Z4:Z68)","v":0},null,{"$f":"COUNTA(AB4:AB68)","v":0},null,{"$f":"COUNTA(AD4:AD68)","v":0},null,{"$f":"COUNTA(AF4:AF68)","v":0},null,{"$f":"COUNTA(AH4:AH68)","v":0},null,{"$f":"COUNTA(AJ4:AJ68)","v":0},null,{"$f":"COUNTA(AL4:AL68)","v":0},null,{"$f":"COUNTA(AN4:AN68)","v":0},null,{"$f":"COUNTA(AP4:AP68)","v":0},null,{"$f":"COUNTA(AR4:AR68)","v":0},null,{"$f":"COUNTA(AT4:AT68)","v":0},null,{"$f":"COUNTA(AV4:AV68)","v":0},{"$f":"SUM(A3:AV3)","v":115}]
[null,"محمد ",null,"خالد",null,"حسن",null,"سعد",null,"رياض",null,"خالد",null,"امين"]
[null,"محمد ",null,"خالد",null,"حسن"]
[null,"محمد ",null,"خالد",null,"حسن"]
[null,"محمد ",null,"خالد",null,"حسن"]
[null,"محمد ",null,"خالد",null,"حسن"]
[null,"محمد ",null,"خالد",null,"حسن"]
[null,"محمد ",null,"خالد",null,"حسن"]
[null,"محمد ",null,"خالد",null,"حسن"]
[null,"محمد ",null,"خالد",null,"حسن"]
[null,"محمد ",null,"خالد",null,"حسن"]
[null,"محمد ",null,"خالد",null,"حسن"]
[null,"محمد ",null,"خالد",null,"حسن"]
[null,"محمد ",null,"خالد",null,"حسن"]
[null,"محمد ",null,"خالد",null,"حسن"]
[null,"محمد ",null,"خالد",null,"حسن"]
[null,"محمد ",null,"خالد",null,"حسن"]
[null,"محمد ",null,"خالد",null,"حسن"]
[null,"محمد ",null,"خالد",null,"حسن"]
[null,"محمد ",null,"خالد",null,"حسن"]
[null,"محمد ",null,"خالد",null,"حسن"]
[null,"محمد ",null,"خالد",null,"حسن"]
[null,"محمد ",null,"خالد",null,"حسن"]
[null,"محمد ",null,"خالد",null,"حسن"]
[null,null,null,null,null,"حسن"]
[null,null,null,null,null,"حسن"]
[null,null,null,null,null,"حسن"]
[null,null,null,null,null,"حسن"]
[null,null,null,null,null,"حسن"]
[null,null,null,null,null,"حسن"]
[null,null,null,null,null,"حسن"]
[null,null,null,null,null,"حسن"]
[null,null,null,null,null,"حسن"]
[null,null,null,null,null,"حسن"]
[null,null,null,null,null,"حسن"]
[null,null,null,null,null,"حسن"]
[null,null,null,null,null,"حسن"]
[null,null,null,null,null,"حسن"]
[null,null,null,null,null,"حسن"]
[null,null,null,null,null,"حسن"]
[null,null,null,null,null,"حسن"]
[null,null,null,null,null,"حسن"]
[null,null,null,null,null,"حسن"]
[null,null,null,null,null,"حسن"]
[null,null,null,null,null,"حسن"]
[null,null,null,null,null,"حسن"]
[null,null,null,null,null,"حسن"]
[null,null,null,null,null,"حسن"]
[null,null,null,null,null,"حسن"]
[null,null,null,null,null,"حسن"]
[null,null,null,null,null,"حسن"]
[null,null,null,null,null,"حسن"]
[null,null,null,null,null,"حسن"]
[null,null,null,null,null,"حسن"]
[null,null,null,null,null,"حسن"]
[null,null,null,null,null,"حسن"]
[null,null,null,null,null,"حسن"]
[null,null,null,null,null,"حسن"]
[null,null,null,null,null,"حسن"]
[null,null,null,null,null,"حسن"]
[null,null,null,null,null,"حسن"]
[null,null,null,null,null,"حسن"]
[null,null,null,null,null,"حسن"]
[null,null,null,null,null,"حسن"]
[null,null,null,null,null,"حسن"]
[null,null,null,null,null,"حسن"]
[null,null,null,null,null,"حسن"]
[null,null,null,null,null,"حسن"]
[null,null,null,null,null,"حسن"]
[null,null,null,null,null,"حسن"]
[null,null,null,null,null,"حسن"]
[null,null,null,null,null,"حسن"]
[null,null,null,null,null,"حسن"]
[null,null,null,null,null,"حسن"]
[]
[]
[]
[]
[]
[]
[]
[]
[]
[]
[null,null,null,null,null,null,null,null,84,null,null,null,null,null,null,null,84]
[null,null,null,null,null,null,null,null,85,null,null,null,null,null,null,null,85]

{"sheet":"Lists","index":1,"n_rows":29,"n_cols":7,"rows_kept":29,"cut":false,"hidden":false,"merged":[[0,0,0,5],[2,4,2,5]]}
["مدرسة  احمد الطراونة الثانوية للبنين \nاسماء الطلبة  للعام  2021  /2022",null,null,null,null,null,"العاشر ب"]
[null," اسم مربي الصف :"]
[null,null,null,null,{"$f":"\" الصف:  \"&G1","v":" الصف:  العاشر ب"}]
["رقم","الاسم","رقم","الاسم","رقم","الاسم"]
[1,"خالد",26,{"$error":"#REF!"},51]
[2,"خالد",27,{"$error":"#REF!"},52]
[3,"خالد",28,{"$error":"#REF!"},53]
[4,"خالد",29,{"$error":"#REF!"},54]
[5,"خالد",30,{"$error":"#REF!"},55]
[6,"خالد",31,{"$error":"#REF!"},56]
[7,"خالد",32,{"$error":"#REF!"},57]
[8,"خالد",33,{"$error":"#REF!"},58]
[9,"خالد",34,{"$error":"#REF!"},59]
[10,"خالد",35,{"$error":"#REF!"},60]
[11,"خالد",36,{"$error":"#REF!"},61]
[12,"خالد",37,{"$error":"#REF!"},62]
[13,"خالد",38,{"$error":"#REF!"},63]
[14,"خالد",39,{"$error":"#REF!"},64]
[15,"خالد",40,{"$error":"#REF!"},65]
[16,"خالد",41,{"$error":"#REF!"},66]
[17,"خالد",42,{"$error":"#REF!"},67]
[18,"خالد",43,{"$error":"#REF!"},68]
[19,"خالد",44,{"$error":"#REF!"},69]
[20,"خالد",45,{"$error":"#REF!"},70]
[21,"خالد",46,{"$error":"#REF!"},71]
[22,"خالد",47,{"$error":"#REF!"},72]
[23,"خالد",48,{"$error":"#REF!"},73]
[24,{"$error":"#REF!"},49,{"$error":"#REF!"},74]
[25,{"$error":"#REF!"},50,{"$error":"#REF!"},75]

{"sheet":"ورقة1","index":2,"n_rows":24,"n_cols":3,"rows_kept":24,"cut":false,"hidden":false,"merged":[]}
["العاشر أ","محمدbvgcghfgh",{"$f":"Names!B3","v":23}]
["العاشر ب",null,{"$f":"Names!D3","v":23}]
["العاشر ج",null,{"$f":"Names!F3","v":65}]
["العاشر د"]
["الحادي عشر العلمي أ"]
["الحادي عشر العلمي ب"]
["الحادي عشر العلمي ج"]
["الحادي عشر العلمي د"]
["الحادي عشر الادبي أ"]
["الحادي عشر الادبي ب"]
["الحادي عشر الادبي ج"]
["الحادي عشر الادبي د"]
["الحادي عشر الادبي هـ"]
["الحادي عشر الادبي و"]
["الثاني عشر الادبي أ"]
["الثاني عشر الادبي ب"]
["الثاني عشر الادبي ج"]
["الثاني عشر الادبي د "]
["الثاني عشر الادبي ز"]
["الثاني عشر الادبي هـ"]
["الثاني عشر الادبي و"]
["الثاني عشر العلمي ا"]
["الثاني عشر العلمي ب"]
["الثاني عشر العلمي ج"]